Workbook

Sheet 事业成绩公示
A1: 岳阳县2021年事业单位公开招聘工作人员综合成绩公示
A2: 单位 | B2: 岗位名称 | C2: 姓名 | D2: 性别 | E2: 考室 | F2: 座位 | G2: 准考证号 | H2: 笔试成绩 | I2: 笔试占60% | J2: 面试成绩 | K2: 面试占40% | L2: 综合成绩 | M2: 排名 | N2: 备注
A3: A1 | B3: 会计 | C3: 胡宸 | D3: 男 | E3: 05 | F3: 25 | G3: 02100010525 | H3: 83.30 | I3: =H3*0.6 -> 49.98 | J3: 80.60 | K3: =J3*0.4 -> 32.24 | L3: =I3+K3 -> 82.22 | M3: 1 | N3: 待审
A4: A1 | B4: 会计 | C4: 付卿 | D4: 男 | E4: 03 | F4: 17 | G4: 02100010317 | H4: 73.80 | I4: 44.28 | J4: 80.80 | K4: 32.32 | L4: 76.60 | M4: 2 | N4: 待审
A5: A1 | B5: 会计 | C5: 徐松 | D5: 男 | E5: 02 | F5: 06 | G5: 02100010206 | H5: 74.50 | I5: 44.70 | J5: 78.40 | K5: 31.36 | L5: 76.06 | M5: 3 | N5: 待审
A6: A1 | B6: 会计 | C6: 游鑫 | D6: 男 | E6: 05 | F6: 22 | G6: 02100010522 | H6: 72.00 | I6: 43.20 | J6: 81.40 | K6: 32.56 | L6: 75.76 | M6: 4 | N6: 待审
A7: A1 | B7: 会计 | C7: 谈庆江 | D7: 男 | E7: 04 | F7: 18 | G7: 02100010418 | H7: 71.50 | I7: 42.90 | J7: 78.60 | K7: 31.44 | L7: 74.34 | M7: 5 | N7: 待审
A8: A1 | B8: 会计 | C8: 李曦 | D8: 男 | E8: 09 | F8: 19 | G8: 02100010919 | H8: 70.20 | I8: 42.12 | J8: 78.00 | K8: 31.20 | L8: 73.32 | M8: 6 | N8: 待审
A9: A1 | B9: 会计 | C9: 谢亮 | D9: 男 | E9: 10 | F9: 17 | G9: 02100011017 | H9: 68.50 | I9: 41.10 | J9: 78.20 | K9: 31.28 | L9: 72.38 | M9: 7 | N9: 待审
A10: A1 | B10: 会计 | C10: 周运昶 | D10: 男 | E10: 03 | F10: 32 | G10: 02100010332 | H10: 68.60 | I10: 41.16 | J10: 77.80 | K10: 31.12 | L10: 72.28 | M10: 8
A11: A1 | B11: 会计 | C11: 刘炼 | D11: 男 | E11: 06 | F11: 32 | G11: 02100010632 | H11: 65.00 | I11: 39.00 | J11: 74.80 | K11: 29.92 | L11: 68.92 | M11: 9
A12: A1 | B12: 会计 | C12: 陆宁 | D12: 男 | E12: 02 | F12: 31 | G12: 02100010231 | H12: 65.40 | I12: 39.24 | J12: 74.00 | K12: 29.60 | L12: 68.84 | M12: 10
A13: A1 | B13: 会计 | C13: 邓尧 | D13: 男 | E13: 10 | F13: 07 | G13: 02100011007 | H13: 62.20 | I13: 37.32 | J13: 77.40 | K13: 30.96 | L13: 68.28 | M13: 11
A14: A1 | B14: 会计 | C14: 吴文浩 | D14: 男 | E14: 05 | F14: 01 | G14: 02100010501 | H14: 61.10 | I14: 36.66 | J14: 77.00 | K14: 30.80 | L14: 67.46 | M14: 12
A15: A1 | B15: 会计 | C15: 郑楚健 | D15: 男 | E15: 02 | F15: 18 | G15: 02100010218 | H15: 58.30 | I15: 34.98 | J15: 79.00 | K15: 31.60 | L15: 66.58 | M15: 13
A16: A1 | B16: 会计 | C16: 郑振麒 | D16: 男 | E16: 01 | F16: 14 | G16: 02100010114 | H16: 60.20 | I16: 36.12 | J16: 缺考 | K16: 缺考 | L16: 36.12 | M16: 14
A17: A2 | B17: 会计 | C17: 彭宇清 | D17: 男 | E17: 08 | F17: 25 | G17: 02100020825 | H17: 80.50 | I17: 48.30 | J17: 81.40 | K17: =J17*0.4 -> 32.56 | L17: =I17+K17 -> 80.86 | M17: 1 | N17: 待审
A18: A2 | B18: 会计 | C18: 蒋伟 | D18: 男 | E18: 06 | F18: 15 | G18: 02100020615 | H18: 79.00 | I18: 47.40 | J18: 77.00 | K18: 30.80 | L18: 78.20 | M18: 2 | N18: 待审
A19: A2 | B19: 会计 | C19: 刘杨 | D19: 男 | E19: 04 | F19: 02 | G19: 02100020402 | H19: 75.50 | I19: 45.30 | J19: 81.60 | K19: 32.64 | L19: 77.94 | M19: 3 | N19: 待审
A20: A2 | B20: 会计 | C20: 李拓 | D20: 男 | E20: 07 | F20: 31 | G20: 02100020731 | H20: 76.30 | I20: 45.78 | J20: 80.00 | K20: 32.00 | L20: 77.78 | M20: 4 | N20: 待审
A21: A2 | B21: 会计 | C21: 刘怀钰 | D21: 男 | E21: 08 | F21: 03 | G21: 02100020803 | H21: 73.80 | I21: 44.28 | J21: 81.20 | K21: 32.48 | L21: 76.76 | M21: 5 | N21: 待审
A22: A2 | B22: 会计 | C22: 袁毅 | D22: 男 | E22: 06 | F22: 13 | G22: 02100020613 | H22: 74.30 | I22: 44.58 | J22: 78.00 | K22: 31.20 | L22: 75.78 | M22: 6 | N22: 待审
A23: A2 | B23: 会计 | C23: 杨润远 | D23: 男 | E23: 05 | F23: 20 | G23: 02100020520 | H23: 75.30 | I23: 45.18 | J23: 75.20 | K23: 30.08 | L23: 75.26 | M23: 7
A24: A2 | B24: 会计 | C24: 姜雄健 | D24: 男 | E24: 08 | F24: 19 | G24: 02100020819 | H24: 75.10 | I24: 45.06 | J24: 74.80 | K24: 29.92 | L24: 74.98 | M24: 8
A25: A2 | B25: 会计 | C25: 黄倚剑 | D25: 男 | E25: 05 | F25: 12 | G25: 02100020512 | H25: 73.20 | I25: 43.92 | J25: 75.80 | K25: 30.32 | L25: 74.24 | M25: 9
A26: A2 | B26: 会计 | C26: 付立 | D26: 男 | E26: 08 | F26: 34 | G26: 02100020834 | H26: 71.80 | I26: 43.08 | J26: 77.20 | K26: 30.88 | L26: 73.96 | M26: 10
A27: A2 | B27: 会计 | C27: 王杰 | D27: 男 | E27: 07 | F27: 05 | G27: 02100020705 | H27: 70.80 | I27: 42.48 | J27: 76.20 | K27: 30.48 | L27: 72.96 | M27: 11
A28: A2 | B28: 会计 | C28: 廖笃 | D28: 男 | E28: 03 | F28: 18 | G28: 02100020318 | H28: 70.80 | I28: 42.48 | J28: 71.60 | K28: 28.64 | L28: 71.12 | M28: 12
A29: A3 | B29: 会计 | C29: 彭雪晴 | D29: 女 | E29: 08 | F29: 20 | G29: 02100030820 | H29: 80.00 | I29: 48.00 | J29: 79.80 | K29: 31.92 | L29: 79.92 | M29: 1 | N29: 待审
A30: A3 | B30: 会计 | C30: 彭文丽 | D30: 女 | E30: 09 | F30: 23 | G30: 02100030923 | H30: 81.90 | I30: 49.14 | J30: 76.60 | K30: 30.64 | L30: 79.78 | M30: 2 | N30: 待审
A31: A3 | B31: 会计 | C31: 张小瑛 | D31: 女 | E31: 10 | F31: 14 | G31: 02100031014 | H31: 77.70 | I31: 46.62 | J31: 78.20 | K31: 31.28 | L31: 77.90 | M31: 3 | N31: 待审
A32: A3 | B32: 会计 | C32: 余颖 | D32: 女 | E32: 03 | F32: 33 | G32: 02100030333 | H32: 77.80 | I32: 46.68 | J32: 77.40 | K32: 30.96 | L32: 77.64 | M32: 4 | N32: 待审
A33: A3 | B33: 会计 | C33: 曾欣钰 | D33: 女 | E33: 06 | F33: 06 | G33: 02100030606 | H33: 76.80 | I33: 46.08 | J33: 77.60 | K33: 31.04 | L33: 77.12 | M33: 5 | N33: 待审
A34: A3 | B34: 会计 | C34: 董晔 | D34: 女 | E34: 04 | F34: 08 | G34: 02100030408 | H34: 74.00 | I34: 44.40 | J34: 80.60 | K34: 32.24 | L34: 76.64 | M34: 6 | N34: 待审
A35: A3 | B35: 会计 | C35: 谢瑾萍 | D35: 女 | E35: 07 | F35: 22 | G35: 02100030722 | H35: 75.00 | I35: 45.00 | J35: 79.00 | K35: 31.60 | L35: 76.60 | M35: 7 | N35: 待审
A36: A3 | B36: 会计 | C36: 陈寅 | D36: 女 | E36: 01 | F36: 32 | G36: 02100030132 | H36: 74.90 | I36: 44.94 | J36: 78.40 | K36: 31.36 | L36: 76.30 | M36: 8
A37: A3 | B37: 会计 | C37: 陈潆琪 | D37: 女 | E37: 06 | F37: 01 | G37: 02100030601 | H37: 74.90 | I37: 44.94 | J37: 78.40 | K37: 31.36 | L37: 76.30 | M37: 9
A38: A3 | B38: 会计 | C38: 周倩 | D38: 女 | E38: 01 | F38: 16 | G38: 02100030116 | H38: 76.00 | I38: 45.60 | J38: 76.40 | K38: 30.56 | L38: 76.16 | M38: 10
A39: A3 | B39: 会计 | C39: 李玟颐 | D39: 女 | E39: 05 | F39: 08 | G39: 02100030508 | H39: 74.00 | I39: 44.40 | J39: 77.00 | K39: 30.80 | L39: 75.20 | M39: 11
A40: A3 | B40: 会计 | C40: 周莹 | D40: 女 | E40: 02 | F40: 28 | G40: 02100030228 | H40: 74.10 | I40: 44.46 | J40: 75.60 | K40: 30.24 | L40: 74.70 | M40: 12
A41: A3 | B41: 会计 | C41: 李红奇 | D41: 女 | E41: 04 | F41: 16 | G41: 02100030416 | H41: 74.30 | I41: 44.58 | J41: 74.20 | K41: 29.68 | L41: 74.26 | M41: 13
A42: A3 | B42: 会计 | C42: 王琼 | D42: 女 | E42: 08 | F42: 24 | G42: 02100030824 | H42: 75.30 | I42: 45.18 | J42: 71.80 | K42: 28.72 | L42: 73.90 | M42: 14
A43: A4 | B43: 会计 | C43: 刘雨露 | D43: 女 | E43: 01 | F43: 20 | G43: 02100040120 | H43: 85.80 | I43: 51.48 | J43: 79.00 | K43: 31.60 | L43: 83.08 | M43: 1 | N43: 待审
A44: A4 | B44: 会计 | C44: 彭玉雯 | D44: 女 | E44: 03 | F44: 34 | G44: 02100040334 | H44: 79.40 | I44: 47.64 | J44: 85.00 | K44: 34.00 | L44: 81.64 | M44: 2 | N44: 待审
A45: A4 | B45: 会计 | C45: 蒋卓伶 | D45: 女 | E45: 07 | F45: 09 | G45: 02100040709 | H45: 82.70 | I45: 49.62 | J45: 78.40 | K45: 31.36 | L45: 80.98 | M45: 3 | N45: 待审
A46: A4 | B46: 会计 | C46: 栗翠玉 | D46: 女 | E46: 02 | F46: 25 | G46: 02100040225 | H46: 79.70 | I46: 47.82 | J46: 77.80 | K46: 31.12 | L46: 78.94 | M46: 4 | N46: 待审
A47: A4 | B47: 会计 | C47: 刘煜卉 | D47: 女 | E47: 04 | F47: 26 | G47: 02100040426 | H47: 79.20 | I47: 47.52 | J47: 78.40 | K47: 31.36 | L47: 78.88 | M47: 5 | N47: 待审
A48: A4 | B48: 会计 | C48: 冯思 | D48: 女 | E48: 09 | F48: 30 | G48: 02100040930 | H48: 76.50 | I48: 45.90 | J48: 79.40 | K48: 31.76 | L48: 77.66 | M48: 6 | N48: 待审
A49: A4 | B49: 会计 | C49: 李彦乐 | D49: 女 | E49: 06 | F49: 12 | G49: 02100040612 | H49: 78.40 | I49: 47.04 | J49: 76.00 | K49: 30.40 | L49: 77.44 | M49: 7
A50: A4 | B50: 会计 | C50: 赵雯 | D50: 女 | E50: 09 | F50: 12 | G50: 02100040912 | H50: 77.70 | I50: 46.62 | J50: 76.60 | K50: 30.64 | L50: 77.26 | M50: 8
A51: A4 | B51: 会计 | C51: 邓巧琳 | D51: 女 | E51: 04 | F51: 32 | G51: 02100040432 | H51: 77.00 | I51: 46.20 | J51: 77.40 | K51: 30.96 | L51: 77.16 | M51: 9
A52: A4 | B52: 会计 | C52: 缪莎莎 | D52: 女 | E52: 09 | F52: 35 | G52: 02100040935 | H52: 77.10 | I52: 46.26 | J52: 76.40 | K52: 30.56 | L52: 76.82 | M52: 10
A53: A4 | B53: 会计 | C53: 付瑞 | D53: 女 | E53: 07 | F53: 30 | G53: 02100040730 | H53: 78.30 | I53: 46.98 | J53: 74.20 | K53: 29.68 | L53: 76.66 | M53: 11
A54: A4 | B54: 会计 | C54: 游珊 | D54: 女 | E54: 09 | F54: 13 | G54: 02100040913 | H54: 77.20 | I54: 46.32 | J54: 缺考 | K54: 缺考 | L54: 46.32 | M54: 12
A55: A5 | B55: 计算机管理员 | C55: 王智 | D55: 女 | E55: 12 | F55: 23 | G55: 02100051223 | H55: 83.00 | I55: 49.80 | J55: 76.60 | K55: =J55*0.4 -> 30.64 | L55: =I55+K55 -> 80.44 | M55: 1 | N55: 待审
A56: A5 | B56: 计算机管理员 | C56: 朱博 | D56: 男 | E56: 11 | F56: 35 | G56: 02100051135 | H56: 75.90 | I56: 45.54 | J56: 76.40 | K56: 30.56 | L56: 76.10 | M56: 2 | N56: 待审
A57: A5 | B57: 计算机管理员 | C57: 许佳卓 | D57: 男 | E57: 14 | F57: 15 | G57: 02100051415 | H57: 78.90 | I57: 47.34 | J57: 71.40 | K57: 28.56 | L57: 75.90 | M57: 3 | N57: 待审
A58: A5 | B58: 计算机管理员 | C58: 张琛 | D58: 男 | E58: 11 | F58: 01 | G58: 02100051101 | H58: 75.20 | I58: 45.12 | J58: 76.60 | K58: 30.64 | L58: 75.76 | M58: 4 | N58: 待审
A59: A5 | B59: 计算机管理员 | C59: 李仪 | D59: 男 | E59: 11 | F59: 27 | G59: 02100051127 | H59: 74.60 | I59: 44.76 | J59: 77.00 | K59: 30.80 | L59: 75.56 | M59: 5 | N59: 待审
A60: A5 | B60: 计算机管理员 | C60: 葛诗音 | D60: 女 | E60: 12 | F60: 01 | G60: 02100051201 | H60: 73.40 | I60: 44.04 | J60: 75.60 | K60: 30.24 | L60: 74.28 | M60: 6
A61: A5 | B61: 计算机管理员 | C61: 蔡宇峰 | D61: 男 | E61: 11 | F61: 05 | G61: 02100051105 | H61: 72.30 | I61: 43.38 | J61: 73.80 | K61: 29.52 | L61: 72.90 | M61: 7
A62: A5 | B62: 计算机管理员 | C62: 吴添荣 | D62: 男 | E62: 13 | F62: 21 | G62: 02100051321 | H62: 72.50 | I62: 43.50 | J62: 73.40 | K62: 29.36 | L62: 72.86 | M62: 8
A63: A5 | B63: 计算机管理员 | C63: 闾涛 | D63: 男 | E63: 14 | F63: 04 | G63: 02100051404 | H63: 73.50 | I63: 44.10 | J63: 71.40 | K63: 28.56 | L63: 72.66 | M63: 9
A64: A5 | B64: 计算机管理员 | C64: 陈东 | D64: 男 | E64: 12 | F64: 34 | G64: 02100051234 | H64: 80.40 | I64: 48.24 | J64: 缺考 | K64: 缺考 | L64: 48.24 | M64: 10
A65: A6 | B65: 计算机管理员 | C65: 李传奇 | D65: 男 | E65: 13 | F65: 24 | G65: 02100061324 | H65: 83.20 | I65: 49.92 | J65: 79.00 | K65: =J65*0.4 -> 31.60 | L65: =I65+K65 -> 81.52 | M65: 1 | N65: 待审
A66: A6 | B66: 计算机管理员 | C66: 林怀远 | D66: 男 | E66: 12 | F66: 07 | G66: 02100061207 | H66: 83.90 | I66: 50.34 | J66: 77.40 | K66: 30.96 | L66: 81.30 | M66: 2 | N66: 待审
A67: A6 | B67: 计算机管理员 | C67: 苏祺乐 | D67: 男 | E67: 11 | F67: 03 | G67: 02100061103 | H67: 80.50 | I67: =H67*0.6 -> 48.30 | J67: 81.20 | K67: 32.48 | L67: 80.78 | M67: 3 | N67: 待审
A68: A6 | B68: 计算机管理员 | C68: 彭冶 | D68: 女 | E68: 11 | F68: 07 | G68: 02100061107 | H68: 81.50 | I68: =H68*0.6 -> 48.90 | J68: 76.80 | K68: 30.72 | L68: 79.62 | M68: 4 | N68: 待审
A69: A6 | B69: 计算机管理员 | C69: 刘一 | D69: 男 | E69: 12 | F69: 27 | G69: 02100061227 | H69: 81.10 | I69: =H69*0.6 -> 48.66 | J69: 73.80 | K69: 29.52 | L69: 78.18 | M69: 5
A70: A6 | B70: 计算机管理员 | C70: 李舟 | D70: 男 | E70: 13 | F70: 11 | G70: 02100061311 | H70: 79.10 | I70: =H70*0.6 -> 47.46 | J70: 76.00 | K70: 30.40 | L70: 77.86 | M70: 6
A71: A6 | B71: 计算机管理员 | C71: 李卓栋 | D71: 男 | E71: 12 | F71: 09 | G71: 02100061209 | H71: 79.30 | I71: =H71*0.6 -> 47.58 | J71: 73.60 | K71: 29.44 | L71: 77.02 | M71: 7
A72: A6 | B72: 计算机管理员 | C72: 李佳 | D72: 男 | E72: 12 | F72: 22 | G72: 02100061222 | H72: 78.40 | I72: =H72*0.6 -> 47.04 | J72: 73.40 | K72: =J72*0.4 -> 29.36 | L72: =I72+K72 -> 76.40 | M72: 8
A73: A7 | B73: 法律专干 | C73: 刘颖专 | D73: 女 | E73: 15 | F73: 02 | G73: 02100071502 | H73: 87.00 | I73: 52.20 | J73: 80.40 | K73: 32.16 | L73: 84.36 | M73: 1 | N73: 待审
A74: A7 | B74: 法律专干 | C74: 万晓燕 | D74: 女 | E74: 15 | F74: 18 | G74: 02100071518 | H74: 79.40 | I74: 47.64 | J74: 80.20 | K74: 32.08 | L74: 79.72 | M74: 2 | N74: 待审
A75: A7 | B75: 法律专干 | C75: 万思玮 | D75: 女 | E75: 15 | F75: 09 | G75: 02100071509 | H75: 78.20 | I75: 46.92 | J75: 79.60 | K75: 31.84 | L75: 78.76 | M75: 3 | N75: 待审
A76: A7 | B76: 法律专干 | C76: 涂凌云 | D76: 男 | E76: 16 | F76: 02 | G76: 02100071602 | H76: 76.70 | I76: 46.02 | J76: 81.60 | K76: 32.64 | L76: 78.66 | M76: 4 | N76: 待审
A77: A7 | B77: 法律专干 | C77: 熊欢 | D77: 女 | E77: 15 | F77: 10 | G77: 02100071510 | H77: 76.20 | I77: 45.72 | J77: 80.80 | K77: 32.32 | L77: 78.04 | M77: 5
A78: A7 | B78: 法律专干 | C78: 兰恬 | D78: 女 | E78: 15 | F78: 15 | G78: 02100071515 | H78: 75.20 | I78: 45.12 | J78: 79.40 | K78: 31.76 | L78: 76.88 | M78: 6
A79: A7 | B79: 法律专干 | C79: 彭霞 | D79: 女 | E79: 16 | F79: 05 | G79: 02100071605 | H79: 75.10 | I79: 45.06 | J79: 75.40 | K79: 30.16 | L79: 75.22 | M79: 7
A80: A7 | B80: 法律专干 | C80: 王启源 | D80: 男 | E80: 15 | F80: 14 | G80: 02100071514 | H80: 76.40 | I80: 45.84 | J80: 缺考 | K80: 缺考 | L80: 45.84 | M80: 8
A81: A8 | B81: 房产评估员 | C81: 杨一度 | D81: 男 | E81: 17 | F81: 01 | G81: 02100081701 | H81: 67.60 | I81: 40.56 | J81: 77.80 | K81: 31.12 | L81: 71.68 | M81: 1 | N81: 待审
A82: A8 | B82: 房产评估员 | C82: 彭诚 | D82: 男 | E82: 17 | F82: 06 | G82: 02100081706 | H82: 65.60 | I82: 39.36 | J82: 73.20 | K82: 29.28 | L82: 68.64 | M82: 2
A83: A9 | B83: 工程造价管理员 | C83: 张泓 | D83: 女 | E83: 18 | F83: 20 | G83: 02100091820 | H83: 69.20 | I83: 41.52 | J83: 75.00 | K83: 30.00 | L83: 71.52 | M83: 1 | N83: 待审
A84: A9 | B84: 工程造价管理员 | C84: 赵思航 | D84: 男 | E84: 18 | F84: 14 | G84: 02100091814 | H84: 67.20 | I84: 40.32 | J84: 73.20 | K84: 29.28 | L84: 69.60 | M84: 2 | N84: 待审
A85: A9 | B85: 工程造价管理员 | C85: 宋佳宜 | D85: 女 | E85: 18 | F85: 02 | G85: 02100091802 | H85: 67.00 | I85: 40.20 | J85: 70.40 | K85: 28.16 | L85: 68.36 | M85: 3 | N85: 待审
A86: A9 | B86: 工程造价管理员 | C86: 丁果 | D86: 女 | E86: 18 | F86: 25 | G86: 02100091825 | H86: 61.40 | I86: 36.84 | J86: 77.80 | K86: 31.12 | L86: 67.96 | M86: 4 | N86: 待审
A87: A9 | B87: 工程造价管理员 | C87: 欧阳宏明 | D87: 男 | E87: 18 | F87: 09 | G87: 02100091809 | H87: 63.60 | I87: 38.16 | J87: 73.80 | K87: 29.52 | L87: 67.68 | M87: 5 | N87: 待审
A88: A9 | B88: 工程造价管理员 | C88: 刘锐 | D88: 女 | E88: 18 | F88: 15 | G88: 02100091815 | H88: 62.40 | I88: 37.44 | J88: 74.40 | K88: 29.76 | L88: 67.20 | M88: 6 | N88: 待审
A89: A9 | B89: 工程造价管理员 | C89: 何莉含 | D89: 女 | E89: 18 | F89: 13 | G89: 02100091813 | H89: 64.10 | I89: 38.46 | J89: 71.20 | K89: 28.48 | L89: 66.94 | M89: 7
A90: A9 | B90: 工程造价管理员 | C90: 任鑫 | D90: 女 | E90: 18 | F90: 22 | G90: 02100091822 | H90: 61.00 | I90: 36.60 | J90: 72.40 | K90: 28.96 | L90: 65.56 | M90: 8
A91: A9 | B91: 工程造价管理员 | C91: 舒欣 | D91: 女 | E91: 18 | F91: 08 | G91: 02100091808 | H91: 60.30 | I91: 36.18 | J91: 73.00 | K91: 29.20 | L91: 65.38 | M91: 9
A92: A9 | B92: 工程造价管理员 | C92: 许子桠 | D92: 女 | E92: 18 | F92: 05 | G92: 02100091805 | H92: 56.20 | I92: 33.72 | J92: 74.00 | K92: 29.60 | L92: 63.32 | M92: 10
A93: A9 | B93: 工程造价管理员 | C93: 姜昕 | D93: 女 | E93: 18 | F93: 17 | G93: 02100091817 | H93: 57.00 | I93: 34.20 | J93: 71.00 | K93: 28.40 | L93: 62.60 | M93: 11
A94: A9 | B94: 工程造价管理员 | C94: 王佳宇 | D94: 男 | E94: 18 | F94: 04 | G94: 02100091804 | H94: 56.10 | I94: 33.66 | J94: 71.00 | K94: 28.40 | L94: 62.06 | M94: 12
A95: A10 | B95: 检验员 | C95: 朱长富 | D95: 男 | E95: 19 | F95: 25 | G95: 02100101925 | H95: 75.90 | I95: 45.54 | J95: 81.80 | K95: 32.72 | L95: 78.26 | M95: 1 | N95: 待审
A96: A10 | B96: 检验员 | C96: 毛雪琳 | D96: 女 | E96: 19 | F96: 22 | G96: 02100101922 | H96: 77.90 | I96: 46.74 | J96: 78.20 | K96: 31.28 | L96: 78.02 | M96: 2 | N96: 待审
A97: A10 | B97: 检验员 | C97: 陈葵 | D97: 男 | E97: 19 | F97: 34 | G97: 02100101934 | H97: 78.40 | I97: 47.04 | J97: 77.40 | K97: 30.96 | L97: 78.00 | M97: 3
A98: A10 | B98: 检验员 | C98: 向彪辉 | D98: 男 | E98: 19 | F98: 31 | G98: 02100101931 | H98: 78.10 | I98: 46.86 | J98: 73.40 | K98: 29.36 | L98: 76.22 | M98: 4
A99: A11 | B99: 机电工程员 | C99: 刘磊 | D99: 男 | E99: 21 | F99: 09 | G99: 02100112109 | H99: 80.20 | I99: 48.12 | J99: 78.20 | K99: 31.28 | L99: 79.40 | M99: 1 | N99: 待审
A100: A11 | B100: 机电工程员 | C100: 刘力 | D100: 男 | E100: 20 | F100: 23 | G100: 02100112023 | H100: 76.10 | I100: 45.66 | J100: 76.20 | K100: 30.48 | L100: 76.14 | M100: 2 | N100: 待审
A101: A11 | B101: 机电工程员 | C101: 胡骏 | D101: 男 | E101: 21 | F101: 24 | G101: 02100112124 | H101: 74.40 | I101: 44.64 | J101: 76.00 | K101: 30.40 | L101: 75.04 | M101: 3 | N101: 待审
A102: A11 | B102: 机电工程员 | C102: 周可夫 | D102: 男 | E102: 21 | F102: 19 | G102: 02100112119 | H102: 67.80 | I102: 40.68 | J102: 78.60 | K102: 31.44 | L102: 72.12 | M102: 4 | N102: 待审
A103: A11 | B103: 机电工程员 | C103: 潘达 | D103: 男 | E103: 20 | F103: 11 | G103: 02100112011 | H103: 66.20 | I103: 39.72 | J103: 80.80 | K103: 32.32 | L103: 72.04 | M103: 5 | N103: 待审
A104: A11 | B104: 机电工程员 | C104: 龚祚 | D104: 男 | E104: 20 | F104: 35 | G104: 02100112035 | H104: 67.00 | I104: 40.20 | J104: 79.00 | K104: 31.60 | L104: 71.80 | M104: 6 | N104: 待审
A105: A11 | B105: 机电工程员 | C105: 彭江林 | D105: 男 | E105: 21 | F105: 10 | G105: 02100112110 | H105: 67.60 | I105: 40.56 | J105: 77.60 | K105: 31.04 | L105: 71.60 | M105: 7
A106: A11 | B106: 机电工程员 | C106: 董旭红 | D106: 男 | E106: 20 | F106: 02 | G106: 02100112002 | H106: 65.70 | I106: 39.42 | J106: 79.60 | K106: 31.84 | L106: 71.26 | M106: 8
A107: A11 | B107: 机电工程员 | C107: 陶毅 | D107: 男 | E107: 20 | F107: 17 | G107: 02100112017 | H107: 67.10 | I107: 40.26 | J107: 77.00 | K107: 30.80 | L107: 71.06 | M107: 9
A108: A11 | B108: 机电工程员 | C108: 向上林 | D108: 男 | E108: 20 | F108: 30 | G108: 02100112030 | H108: 66.40 | I108: 39.84 | J108: 77.20 | K108: 30.88 | L108: 70.72 | M108: 10
A109: A11 | B109: 机电工程员 | C109: 刘从亮 | D109: 男 | E109: 21 | F109: 22 | G109: 02100112122 | H109: 67.00 | I109: 40.20 | J109: 75.40 | K109: 30.16 | L109: 70.36 | M109: 11
A110: A11 | B110: 机电工程员 | C110: 袁世文 | D110: 男 | E110: 20 | F110: 28 | G110: 02100112028 | H110: 65.60 | I110: 39.36 | J110: 77.00 | K110: 30.80 | L110: 70.16 | M110: 12
A111: A12 | B111: 水利工程员 | C111: 周洋 | D111: 男 | E111: 22 | F111: 21 | G111: 02100122221 | H111: 73.10 | I111: 43.86 | J111: 79.20 | K111: 31.68 | L111: 75.54 | M111: 1 | N111: 待审
A112: A12 | B112: 水利工程员 | C112: 鲁校吉 | D112: 男 | E112: 22 | F112: 29 | G112: 02100122229 | H112: 69.60 | I112: 41.76 | J112: 77.20 | K112: 30.88 | L112: 72.64 | M112: 2 | N112: 待审
A113: A12 | B113: 水利工程员 | C113: 彭月 | D113: 女 | E113: 22 | F113: 10 | G113: 02100122210 | H113: 67.70 | I113: 40.62 | J113: 76.20 | K113: 30.48 | L113: 71.10 | M113: 3 | N113: 待审
A114: A12 | B114: 水利工程员 | C114: 张赐蓝 | D114: 男 | E114: 22 | F114: 18 | G114: 02100122218 | H114: 64.70 | I114: 38.82 | J114: 77.60 | K114: 31.04 | L114: 69.86 | M114: 4
A115: A12 | B115: 水利工程员 | C115: 毛智 | D115: 男 | E115: 22 | F115: 14 | G115: 02100122214 | H115: 65.50 | I115: 39.30 | J115: 76.00 | K115: 30.40 | L115: 69.70 | M115: 5
A116: A12 | B116: 水利工程员 | C116: 周文广 | D116: 男 | E116: 22 | F116: 25 | G116: 02100122225 | H116: 65.60 | I116: 39.36 | J116: 缺考 | K116: 缺考 | L116: 39.36 | M116: 6
A117: A13 | B117: 技术员 | C117: 陈乔 | D117: 男 | E117: 23 | F117: 28 | G117: 02100132328 | H117: 73.50 | I117: 44.10 | J117: 77.40 | K117: 30.96 | L117: 75.06 | M117: 1 | N117: 待审
A118: A13 | B118: 技术员 | C118: 李广 | D118: 男 | E118: 23 | F118: 13 | G118: 02100132313 | H118: 70.30 | I118: 42.18 | J118: 76.00 | K118: 30.40 | L118: 72.58 | M118: 2 | N118: 待审
A119: A13 | B119: 技术员 | C119: 费宇航 | D119: 男 | E119: 24 | F119: 05 | G119: 02100132405 | H119: 64.80 | I119: 38.88 | J119: 80.20 | K119: 32.08 | L119: 70.96 | M119: 3 | N119: 待审
A120: A13 | B120: 技术员 | C120: 侯钦仁 | D120: 男 | E120: 23 | F120: 24 | G120: 02100132324 | H120: 66.00 | I120: 39.60 | J120: 78.00 | K120: 31.20 | L120: 70.80 | M120: 4 | N120: 待审
A121: A13 | B121: 技术员 | C121: 肖子昌 | D121: 男 | E121: 24 | F121: 10 | G121: 02100132410 | H121: 63.90 | I121: 38.34 | J121: 77.00 | K121: 30.80 | L121: 69.14 | M121: 5 | N121: 待审
A122: A13 | B122: 技术员 | C122: 文凯 | D122: 男 | E122: 24 | F122: 24 | G122: 02100132424 | H122: 64.80 | I122: 38.88 | J122: 75.60 | K122: 30.24 | L122: 69.12 | M122: 6
A123: A13 | B123: 技术员 | C123: 刘武奇 | D123: 男 | E123: 24 | F123: 16 | G123: 02100132416 | H123: 59.30 | I123: 35.58 | J123: 79.00 | K123: 31.60 | L123: 67.18 | M123: 7
A124: A13 | B124: 技术员 | C124: 李木 | D124: 男 | E124: 24 | F124: 01 | G124: 02100132401 | H124: 59.40 | I124: 35.64 | J124: 77.40 | K124: 30.96 | L124: 66.60 | M124: 8
A125: A13 | B125: 技术员 | C125: 何敏 | D125: 男 | E125: 24 | F125: 09 | G125: 02100132409 | H125: 60.10 | I125: 36.06 | J125: 75.60 | K125: 30.24 | L125: 66.30 | M125: 9
A126: A13 | B126: 技术员 | C126: 孙晟凯 | D126: 男 | E126: 23 | F126: 36 | G126: 02100132336 | H126: 57.30 | I126: 34.38 | J126: 74.00 | K126: 29.60 | L126: 63.98 | M126: 10
A127: A14 | B127: 技术员 | C127: 侯志强 | D127: 男 | E127: 23 | F127: 03 | G127: 02100142303 | H127: 70.80 | I127: 42.48 | J127: 79.80 | K127: 31.92 | L127: 74.40 | M127: 1 | N127: 待审
A128: A14 | B128: 技术员 | C128: 刘智侃 | D128: 男 | E128: 23 | F128: 16 | G128: 02100142316 | H128: 68.30 | I128: 40.98 | J128: 80.20 | K128: 32.08 | L128: 73.06 | M128: 2 | N128: 待审
A129: A14 | B129: 技术员 | C129: 廖有伟 | D129: 男 | E129: 23 | F129: 33 | G129: 02100142333 | H129: 68.20 | I129: 40.92 | J129: 75.80 | K129: 30.32 | L129: 71.24 | M129: 3 | N129: 待审
A130: A14 | B130: 技术员 | C130: 何奇 | D130: 男 | E130: 23 | F130: 23 | G130: 02100142323 | H130: 66.70 | I130: 40.02 | J130: 75.40 | K130: 30.16 | L130: 70.18 | M130: 4 | N130: 待审
A131: A14 | B131: 技术员 | C131: 任能 | D131: 男 | E131: 23 | F131: 34 | G131: 02100142334 | H131: 65.60 | I131: 39.36 | J131: 76.00 | K131: 30.40 | L131: 69.76 | M131: 5
A132: A14 | B132: 技术员 | C132: 任凯 | D132: 男 | E132: 24 | F132: 02 | G132: 02100142402 | H132: 62.60 | I132: 37.56 | J132: 77.60 | K132: 31.04 | L132: 68.60 | M132: 6
A133: A14 | B133: 技术员 | C133: 方伟 | D133: 男 | E133: 24 | F133: 11 | G133: 02100142411 | H133: 60.90 | I133: 36.54 | J133: 77.00 | K133: 30.80 | L133: 67.34 | M133: 7
A134: A14 | B134: 技术员 | C134: 张磊 | D134: 男 | E134: 23 | F134: 22 | G134: 02100142322 | H134: 64.60 | I134: 38.76 | J134: 缺考 | K134: 缺考 | L134: 38.76 | M134: 8
A135: A15 | B135: 药品监督管理员 | C135: 黄颖 | D135: 女 | E135: 25 | F135: 02 | G135: 02100152502 | H135: 70.50 | I135: 42.30 | J135: 81.40 | K135: =J135*0.4 -> 32.56 | L135: =I135+K135 -> 74.86 | M135: 1 | N135: 待审
A136: A15 | B136: 药品监督管理员 | C136: 罗蒙 | D136: 女 | E136: 25 | F136: 05 | G136: 02100152505 | H136: 70.70 | I136: =H136*0.6 -> 42.42 | J136: 80.20 | K136: 32.08 | L136: 74.50 | M136: 2 | N136: 待审
A137: A15 | B137: 药品监督管理员 | C137: 张子涵 | D137: 女 | E137: 25 | F137: 08 | G137: 02100152508 | H137: 70.50 | I137: 42.30 | J137: 77.80 | K137: 31.12 | L137: 73.42 | M137: 3 | N137: 待审
A138: A15 | B138: 药品监督管理员 | C138: 陈思危 | D138: 女 | E138: 25 | F138: 04 | G138: 02100152504 | H138: 65.10 | I138: 39.06 | J138: 80.00 | K138: 32.00 | L138: 71.06 | M138: 4
A139: A15 | B139: 药品监督管理员 | C139: 付茹琴 | D139: 女 | E139: 25 | F139: 09 | G139: 02100152509 | H139: 59.60 | I139: 35.76 | J139: 79.20 | K139: 31.68 | L139: 67.44 | M139: 5
A140: A16 | B140: 农推干事 | C140: 李颖珊 | D140: 女 | E140: 26 | F140: 03 | G140: 02100162603 | H140: 71.80 | I140: 43.08 | J140: 83.00 | K140: 33.20 | L140: 76.28 | M140: 1 | N140: 待审
A141: A16 | B141: 农推干事 | C141: 甘维 | D141: 女 | E141: 26 | F141: 01 | G141: 02100162601 | H141: 65.40 | I141: 39.24 | J141: 81.20 | K141: 32.48 | L141: 71.72 | M141: 2 | N141: 待审
A142: A16 | B142: 农推干事 | C142: 施伟强 | D142: 男 | E142: 26 | F142: 07 | G142: 02100162607 | H142: 63.10 | I142: 37.86 | J142: 72.60 | K142: 29.04 | L142: 66.90 | M142: 3
A143: A16 | B143: 农推干事 | C143: 姜丹 | D143: 女 | E143: 26 | F143: 02 | G143: 02100162602 | H143: 58.30 | I143: 34.98 | J143: 缺考 | K143: 缺考 | L143: 34.98 | M143: 4
A144: A17 | B144: 文字综合 | C144: 赵梦琪 | D144: 女 | E144: 27 | F144: 10 | G144: 02100172710 | H144: 73.90 | I144: 44.34 | J144: 81.80 | K144: =J144*0.4 -> 32.72 | L144: =I144+K144 -> 77.06 | M144: 1 | N144: 待审
A145: A17 | B145: 文字综合 | C145: 陈杰 | D145: 女 | E145: 27 | F145: 01 | G145: 02100172701 | H145: 76.00 | I145: 45.60 | J145: 77.40 | K145: 30.96 | L145: 76.56 | M145: 2 | N145: 待审
A146: A17 | B146: 文字综合 | C146: 贺为 | D146: 女 | E146: 27 | F146: 04 | G146: 02100172704 | H146: 74.30 | I146: 44.58 | J146: 78.80 | K146: 31.52 | L146: 76.10 | M146: 3 | N146: 待审
A147: A17 | B147: 文字综合 | C147: 胡琴 | D147: 女 | E147: 27 | F147: 09 | G147: 02100172709 | H147: 74.30 | I147: 44.58 | J147: 77.20 | K147: 30.88 | L147: 75.46 | M147: 4 | N147: 待审
A148: A17 | B148: 文字综合 | C148: 许燕 | D148: 女 | E148: 27 | F148: 08 | G148: 02100172708 | H148: 73.20 | I148: 43.92 | J148: 78.40 | K148: 31.36 | L148: 75.28 | M148: 5 | N148: 待审
A149: A17 | B149: 文字综合 | C149: 王亚静 | D149: 女 | E149: 27 | F149: 14 | G149: 02100172714 | H149: 72.10 | I149: 43.26 | J149: 78.80 | K149: 31.52 | L149: 74.78 | M149: 6
A150: A17 | B150: 文字综合 | C150: 吴莉 | D150: 女 | E150: 27 | F150: 20 | G150: 02100172720 | H150: 71.70 | I150: 43.02 | J150: 78.40 | K150: 31.36 | L150: 74.38 | M150: 7
A151: A17 | B151: 文字综合 | C151: 孙舒 | D151: 男 | E151: 27 | F151: 12 | G151: 02100172712 | H151: 69.80 | I151: 41.88 | J151: 80.40 | K151: 32.16 | L151: 74.04 | M151: 8
A152: A17 | B152: 文字综合 | C152: 屈艳 | D152: 女 | E152: 27 | F152: 06 | G152: 02100172706 | H152: 70.70 | I152: 42.42 | J152: 76.40 | K152: 30.56 | L152: 72.98 | M152: 9
A153: A17 | B153: 文字综合 | C153: 苏婷 | D153: 女 | E153: 27 | F153: 16 | G153: 02100172716 | H153: 69.90 | I153: 41.94 | J153: 缺考 | K153: 缺考 | L153: 41.94 | M153: 10
A154: A18 | B154: 办事员 | C154: 于柳青 | D154: 女 | E154: 34 | F154: 19 | G154: 02100183419 | H154: 87.70 | I154: 52.62 | J154: 84.60 | K154: =J154*0.4 -> 33.84 | L154: =I154+K154 -> 86.46 | M154: 1 | N154: 待审
A155: A18 | B155: 办事员 | C155: 冯子瑶 | D155: 女 | E155: 35 | F155: 15 | G155: 02100183515 | H155: 88.90 | I155: 53.34 | J155: 82.40 | K155: 32.96 | L155: 86.30 | M155: 2 | N155: 待审
A156: A18 | B156: 办事员 | C156: 刘烁 | D156: 男 | E156: 41 | F156: 16 | G156: 02100184116 | H156: 85.40 | I156: 51.24 | J156: 85.00 | K156: 34.00 | L156: 85.24 | M156: 3 | N156: 待审
A157: A18 | B157: 办事员 | C157: 方毅祥 | D157: 男 | E157: 36 | F157: 07 | G157: 02100183607 | H157: 87.10 | I157: 52.26 | J157: 82.20 | K157: 32.88 | L157: 85.14 | M157: 4 | N157: 待审
A158: A18 | B158: 办事员 | C158: 李倩 | D158: 女 | E158: 43 | F158: 34 | G158: 02100184334 | H158: 84.20 | I158: 50.52 | J158: 85.20 | K158: 34.08 | L158: 84.60 | M158: 5 | N158: 待审
A159: A18 | B159: 办事员 | C159: 陈阳波 | D159: 男 | E159: 31 | F159: 21 | G159: 02100183121 | H159: 89.50 | I159: 53.70 | J159: 76.40 | K159: 30.56 | L159: 84.26 | M159: 6 | N159: 待审
A160: A18 | B160: 办事员 | C160: 刘容洲 | D160: 女 | E160: 37 | F160: 06 | G160: 02100183706 | H160: 85.10 | I160: 51.06 | J160: 82.60 | K160: 33.04 | L160: 84.10 | M160: 7 | N160: 待审
A161: A18 | B161: 办事员 | C161: 刘志豪 | D161: 男 | E161: 28 | F161: 19 | G161: 02100182819 | H161: 85.00 | I161: 51.00 | J161: 82.40 | K161: 32.96 | L161: 83.96 | M161: 8 | N161: 待审
A162: A18 | B162: 办事员 | C162: 唐康馨 | D162: 女 | E162: 44 | F162: 12 | G162: 02100184412 | H162: 84.40 | I162: 50.64 | J162: 83.20 | K162: 33.28 | L162: 83.92 | M162: 9
A163: A18 | B163: 办事员 | C163: 张静 | D163: 女 | E163: 28 | F163: 22 | G163: 02100182822 | H163: 86.10 | I163: 51.66 | J163: 80.20 | K163: 32.08 | L163: 83.74 | M163: 10
A164: A18 | B164: 办事员 | C164: 刘涛 | D164: 女 | E164: 36 | F164: 22 | G164: 02100183622 | H164: 85.60 | I164: 51.36 | J164: 80.40 | K164: 32.16 | L164: 83.52 | M164: 11
A165: A18 | B165: 办事员 | C165: 陈唯微 | D165: 女 | E165: 41 | F165: 10 | G165: 02100184110 | H165: 84.20 | I165: 50.52 | J165: 81.40 | K165: 32.56 | L165: 83.08 | M165: 12
A166: A18 | B166: 办事员 | C166: 戴荣冬 | D166: 男 | E166: 43 | F166: 20 | G166: 02100184320 | H166: 85.80 | I166: 51.48 | J166: 79.00 | K166: 31.60 | L166: 83.08 | M166: 13
A167: A18 | B167: 办事员 | C167: 付益铃 | D167: 女 | E167: 32 | F167: 21 | G167: 02100183221 | H167: 86.30 | I167: 51.78 | J167: 78.00 | K167: 31.20 | L167: 82.98 | M167: 14
A168: A18 | B168: 办事员 | C168: 王震 | D168: 男 | E168: 31 | F168: 08 | G168: 02100183108 | H168: 86.00 | I168: 51.60 | J168: 78.40 | K168: 31.36 | L168: 82.96 | M168: 15
A169: A18 | B169: 办事员 | C169: 杨勉 | D169: 女 | E169: 42 | F169: 32 | G169: 02100184232 | H169: 84.90 | I169: 50.94 | J169: 78.20 | K169: 31.28 | L169: 82.22 | M169: 16
A170: A19 | B170: 办事员 | C170: 张颖佩仪 | D170: 女 | E170: 41 | F170: 09 | G170: 02100194109 | H170: 82.50 | I170: 49.50 | J170: 82.60 | K170: 33.04 | L170: 82.54 | M170: 1 | N170: 待审
A171: A19 | B171: 办事员 | C171: 付思睿 | D171: 女 | E171: 37 | F171: 32 | G171: 02100193732 | H171: 82.40 | I171: 49.44 | J171: 82.00 | K171: 32.80 | L171: 82.24 | M171: 2 | N171: 待审
A172: A19 | B172: 办事员 | C172: 付依缘 | D172: 男 | E172: 30 | F172: 30 | G172: 02100193030 | H172: 83.60 | I172: 50.16 | J172: 79.40 | K172: 31.76 | L172: 81.92 | M172: 3 | N172: 待审
A173: A19 | B173: 办事员 | C173: 陈振宇 | D173: 男 | E173: 41 | F173: 17 | G173: 02100194117 | H173: 81.60 | I173: 48.96 | J173: 82.00 | K173: 32.80 | L173: 81.76 | M173: 4 | N173: 待审
A174: A19 | B174: 办事员 | C174: 许文韬 | D174: 男 | E174: 39 | F174: 01 | G174: 02100193901 | H174: 81.40 | I174: 48.84 | J174: 82.00 | K174: 32.80 | L174: 81.64 | M174: 5 | N174: 待审
A175: A19 | B175: 办事员 | C175: 申鑫星 | D175: 女 | E175: 39 | F175: 07 | G175: 02100193907 | H175: 81.80 | I175: 49.08 | J175: 81.40 | K175: 32.56 | L175: 81.64 | M175: 5 | N175: 待审
A176: A19 | B176: 办事员 | C176: 李妹玲 | D176: 女 | E176: 41 | F176: 36 | G176: 02100194136 | H176: 82.90 | I176: 49.74 | J176: 79.40 | K176: 31.76 | L176: 81.50 | M176: 7 | N176: 待审
A177: A19 | B177: 办事员 | C177: 刘派 | D177: 男 | E177: 45 | F177: 03 | G177: 02100194503 | H177: 83.00 | I177: 49.80 | J177: 79.20 | K177: 31.68 | L177: 81.48 | M177: 8 | N177: 待审
A178: A19 | B178: 办事员 | C178: 曾丹 | D178: 女 | E178: 42 | F178: 13 | G178: 02100194213 | H178: 80.50 | I178: 48.30 | J178: 82.80 | K178: 33.12 | L178: 81.42 | M178: 9
A179: A19 | B179: 办事员 | C179: 陈亮红 | D179: 女 | E179: 30 | F179: 26 | G179: 02100193026 | H179: 84.20 | I179: 50.52 | J179: 76.20 | K179: 30.48 | L179: 81.00 | M179: 10
A180: A19 | B180: 办事员 | C180: 唐时 | D180: 女 | E180: 35 | F180: 10 | G180: 02100193510 | H180: 83.40 | I180: 50.04 | J180: 77.20 | K180: 30.88 | L180: 80.92 | M180: 11
A181: A19 | B181: 办事员 | C181: 乔李智 | D181: 男 | E181: 44 | F181: 32 | G181: 02100194432 | H181: 80.40 | I181: 48.24 | J181: 80.80 | K181: 32.32 | L181: 80.56 | M181: 12
A182: A19 | B182: 办事员 | C182: 孙亚妮 | D182: 女 | E182: 45 | F182: 21 | G182: 02100194521 | H182: 80.90 | I182: 48.54 | J182: 79.20 | K182: 31.68 | L182: 80.22 | M182: 13
A183: A19 | B183: 办事员 | C183: 尹茜 | D183: 女 | E183: 29 | F183: 29 | G183: 02100192929 | H183: 82.40 | I183: 49.44 | J183: 76.80 | K183: 30.72 | L183: 80.16 | M183: 14
A184: A19 | B184: 办事员 | C184: 孙海红 | D184: 女 | E184: 43 | F184: 23 | G184: 02100194323 | H184: 81.00 | I184: 48.60 | J184: 78.20 | K184: 31.28 | L184: 79.88 | M184: 15
A185: A19 | B185: 办事员 | C185: 许垂 | D185: 男 | E185: 43 | F185: 33 | G185: 02100194333 | H185: 80.60 | I185: 48.36 | J185: 77.00 | K185: 30.80 | L185: 79.16 | M185: 16
A186: A20 | B186: 办事员 | C186: 龙雨舟 | D186: 女 | E186: 38 | F186: 02 | G186: 02100203802 | H186: 87.00 | I186: 52.20 | J186: 78.80 | K186: 31.52 | L186: 83.72 | M186: 1 | N186: 待审
A187: A20 | B187: 办事员 | C187: 蒋有宏 | D187: 男 | E187: 43 | F187: 36 | G187: 02100204336 | H187: 86.20 | I187: 51.72 | J187: 78.60 | K187: 31.44 | L187: 83.16 | M187: 2 | N187: 待审
A188: A20 | B188: 办事员 | C188: 卢莹 | D188: 女 | E188: 28 | F188: 02 | G188: 02100202802 | H188: 86.20 | I188: 51.72 | J188: 77.80 | K188: 31.12 | L188: 82.84 | M188: 3 | N188: 待审
A189: A20 | B189: 办事员 | C189: 喻奥 | D189: 男 | E189: 31 | F189: 09 | G189: 02100203109 | H189: 84.60 | I189: 50.76 | J189: 77.60 | K189: 31.04 | L189: 81.80 | M189: 4 | N189: 待审
A190: A20 | B190: 办事员 | C190: 续铄文 | D190: 男 | E190: 31 | F190: 32 | G190: 02100203132 | H190: 82.00 | I190: 49.20 | J190: 79.40 | K190: 31.76 | L190: 80.96 | M190: 5 | N190: 待审
A191: A20 | B191: 办事员 | C191: 刘欣涛 | D191: 男 | E191: 42 | F191: 31 | G191: 02100204231 | H191: 81.30 | I191: 48.78 | J191: 80.40 | K191: 32.16 | L191: 80.94 | M191: 6 | N191: 待审
A192: A20 | B192: 办事员 | C192: 陈旗 | D192: 女 | E192: 31 | F192: 18 | G192: 02100203118 | H192: 82.40 | I192: 49.44 | J192: 78.40 | K192: 31.36 | L192: 80.80 | M192: 7
A193: A20 | B193: 办事员 | C193: 罗序淼 | D193: 男 | E193: 37 | F193: 31 | G193: 02100203731 | H193: 82.40 | I193: 49.44 | J193: 78.20 | K193: 31.28 | L193: 80.72 | M193: 8
A194: A20 | B194: 办事员 | C194: 晏梓颐 | D194: 男 | E194: 33 | F194: 19 | G194: 02100203319 | H194: 81.60 | I194: 48.96 | J194: 78.00 | K194: 31.20 | L194: 80.16 | M194: 9
A195: A20 | B195: 办事员 | C195: 刘婷 | D195: 女 | E195: 30 | F195: 23 | G195: 02100203023 | H195: 83.20 | I195: 49.92 | J195: 75.40 | K195: 30.16 | L195: 80.08 | M195: 10
A196: A20 | B196: 办事员 | C196: 李名阳 | D196: 男 | E196: 34 | F196: 07 | G196: 02100203407 | H196: 82.60 | I196: 49.56 | J196: 76.00 | K196: 30.40 | L196: 79.96 | M196: 11
A197: A20 | B197: 办事员 | C197: 刘朝 | D197: 男 | E197: 46 | F197: 01 | G197: 02100204601 | H197: 81.30 | I197: 48.78 | J197: 77.00 | K197: 30.80 | L197: 79.58 | M197: 12
A198: A21 | B198: 专武干部 | C198: 谭佳伟 | D198: 男 | E198: 47 | F198: 28 | G198: 02100214728 | H198: 78.60 | I198: 47.16 | J198: 83.20 | K198: 33.28 | L198: 80.44 | M198: 1 | N198: 待审
A199: A21 | B199: 专武干部 | C199: 张慧 | D199: 女 | E199: 47 | F199: 16 | G199: 02100214716 | H199: 73.90 | I199: 44.34 | J199: 80.20 | K199: 32.08 | L199: 76.42 | M199: 2 | N199: 待审
A200: A21 | B200: 专武干部 | C200: 徐昶 | D200: 男 | E200: 47 | F200: 27 | G200: 02100214727 | H200: 72.50 | I200: =H200*0.6 -> 43.50 | J200: 78.80 | K200: 31.52 | L200: 75.02 | M200: 3 | N200: 待审
... 5 more rows
